[Event "*** Titled Tuesday Blitz"]
[Site "Chess.com"]
[Date "2020.12.01"]
[Round "8"]
[White "Stormeman100100"]
[Black "KononenkoD"]
[Result "0-1"]
[WhiteElo "2485"]
[BlackElo "2383"]
[TimeControl "180+1"]
[EndTime "11:27:09 PST"]
[Termination "KononenkoD won on time"]

1. d4 {[%clk 0:03:00.9]} 1... Nf6 {[%clk 0:02:58.3]} 2. c4 {[%clk 0:03:01.1]}
2... c5 {[%clk 0:02:58.5]} 3. dxc5 {[%clk 0:03:00.9]} 3... e6 {[%clk 0:02:55.6]}
4. Nc3 {[%clk 0:02:54.4]} 4... Bxc5 {[%clk 0:02:55.9]} 5. Bg5 {[%clk 0:02:54.5]}
5... O-O {[%clk 0:02:54.9]} 6. e3 {[%clk 0:02:54]} 6... h6 {[%clk 0:02:52.2]} 7.
Bh4 {[%clk 0:02:51.7]} 7... b6 {[%clk 0:02:34]} 8. Nf3 {[%clk 0:02:04.8]} 8...
Bb7 {[%clk 0:02:33]} 9. Be2 {[%clk 0:02:04.3]} 9... Be7 {[%clk 0:02:25]} 10. O-O
{[%clk 0:02:02.4]} 10... d6 {[%clk 0:02:14.4]} 11. Qc2 {[%clk 0:01:58.6]} 11...
Nbd7 {[%clk 0:02:14.3]} 12. Rfd1 {[%clk 0:01:58]} 12... Rc8 {[%clk 0:02:14.7]}
13. Rac1 {[%clk 0:01:44.6]} 13... Qc7 {[%clk 0:02:11.1]} 14. Nb5 {[%clk
0:01:35.5]} 14... Qb8 {[%clk 0:02:11]} 15. Qd3 {[%clk 0:01:25.2]} 15... Nc5
{[%clk 0:02:03.1]} 16. Qb1 {[%clk 0:01:19.2]} 16... Be4 {[%clk 0:01:54]} 17. Qa1
{[%clk 0:01:18.8]} 17... Rfd8 {[%clk 0:01:49.3]} 18. b4 {[%clk 0:01:17]} 18...
Ncd7 {[%clk 0:01:44.4]} 19. Qd4 {[%clk 0:01:04.7]} 19... Bxf3 {[%clk 0:01:30.1]}
20. Bxf3 {[%clk 0:00:57.1]} 20... Ne5 {[%clk 0:01:30.5]} 21. Be2 {[%clk
0:00:53.6]} 21... a6 {[%clk 0:01:28.7]} 22. Nc3 {[%clk 0:00:40.9]} 22... Nc6
{[%clk 0:01:27.2]} 23. Qf4 {[%clk 0:00:33.5]} 23... g5 {[%clk 0:01:09.5]} 24.
Qg3 {[%clk 0:00:28.8]} 24... Nh7 {[%clk 0:00:49.7]} 25. f4 {[%clk 0:00:24.3]}
25... Kh8 {[%clk 0:00:44.9]} 26. fxg5 {[%clk 0:00:19]} 26... hxg5 {[%clk
0:00:44.6]} 27. Rf1 {[%clk 0:00:16.9]} 27... Ne5 {[%clk 0:00:39.9]} 28. Ne4
{[%clk 0:00:12.6]} 28... gxh4 {[%clk 0:00:37.5]} 29. Qf4 {[%clk 0:00:11.3]}
29... Rg8 {[%clk 0:00:32.7]} 30. Kh1 {[%clk 0:00:09.8]} 30... f5 {[%clk
0:00:30.3]} 31. Nd2 {[%clk 0:00:09.4]} 31... Rcf8 {[%clk 0:00:21.8]} 32. Qf2
{[%clk 0:00:08.5]} 32... Ng4 {[%clk 0:00:18.3]} 33. Qg1 {[%clk 0:00:08.5]} 33...
Bg5 {[%clk 0:00:17.6]} 34. Rf3 {[%clk 0:00:07.5]} 34... e5 {[%clk 0:00:15.1]}
35. Rcf1 {[%clk 0:00:06.6]} 35... e4 {[%clk 0:00:15.4]} 36. Rxf5 {[%clk
0:00:05.5]} 36... Rxf5 {[%clk 0:00:15.4]} 37. Rxf5 {[%clk 0:00:05.7]} 37... Bxe3
{[%clk 0:00:15.8]} 38. Qa1+ {[%clk 0:00:05.6]} 38... Ne5 {[%clk 0:00:13.5]} 39.
Nxe4 {[%clk 0:00:04.6]} 39... Qc8 {[%clk 0:00:12.1]} 40. Nxd6 {[%clk 0:00:03.7]}
40... Qe6 {[%clk 0:00:09]} 41. Rxe5 {[%clk 0:00:03.3]} 41... Qf6 {[%clk
0:00:09.5]} 42. Ne4 {[%clk 0:00:02.5]} 42... Qg7 {[%clk 0:00:09.2]} 0-1

[Event "*** Titled Tuesday Blitz"]
[Site "Chess.com"]
[Date "2020.12.01"]
[Round "8"]
[White "malakismayil"]
[Black "RaphCamora"]
[Result "1-0"]
[WhiteElo "2288"]
[BlackElo "2407"]
[TimeControl "180+1"]
[EndTime "11:27:10 PST"]
[Termination "malakismayil won by checkmate"]

1. e4 {[%clk 0:03:00.9]} 1... c5 {[%clk 0:02:59.8]} 2. Nf3 {[%clk 0:03:00.6]}
2... Nc6 {[%clk 0:02:59.5]} 3. Bb5 {[%clk 0:02:59.1]} 3... g6 {[%clk 0:02:59]}
4. c3 {[%clk 0:02:58.8]} 4... Bg7 {[%clk 0:02:58.7]} 5. d4 {[%clk 0:02:58.6]}
5... cxd4 {[%clk 0:02:52.6]} 6. cxd4 {[%clk 0:02:59.5]} 6... Nf6 {[%clk
0:02:52.7]} 7. Nc3 {[%clk 0:02:58.3]} 7... d5 {[%clk 0:02:52.8]} 8. e5 {[%clk
0:02:56.2]} 8... Ne4 {[%clk 0:02:52.8]} 9. O-O {[%clk 0:02:51.4]} 9... O-O
{[%clk 0:02:47.9]} 10. Bxc6 {[%clk 0:02:48.1]} 10... bxc6 {[%clk 0:02:44]} 11.
Qe2 {[%clk 0:02:38.5]} 11... a5 {[%clk 0:02:38.3]} 12. Rd1 {[%clk 0:02:22.9]}
12... Nxc3 {[%clk 0:02:32.2]} 13. bxc3 {[%clk 0:02:20.7]} 13... Ba6 {[%clk
0:02:33.1]} 14. Qe3 {[%clk 0:02:17.6]} 14... Rb8 {[%clk 0:02:32.3]} 15. Ba3
{[%clk 0:02:05.5]} 15... Qd7 {[%clk 0:02:26.7]} 16. Re1 {[%clk 0:01:59.5]} 16...
Qc7 {[%clk 0:02:04.7]} 17. e6 {[%clk 0:01:47.4]} 17... f6 {[%clk 0:02:03.5]} 18.
Nd2 {[%clk 0:01:33.3]} 18... Rb7 {[%clk 0:01:59.9]} 19. Nb3 {[%clk 0:01:29.9]}
19... Bc4 {[%clk 0:01:54.6]} 20. Nc5 {[%clk 0:01:27.4]} 20... Rb5 {[%clk
0:01:54.9]} 21. Nd7 {[%clk 0:01:13.2]} 21... Re8 {[%clk 0:01:52.4]} 22. Rab1
{[%clk 0:01:10.5]} 22... Bxa2 {[%clk 0:01:48.9]} 23. Rxb5 {[%clk 0:01:04.5]}
23... cxb5 {[%clk 0:01:49.8]} 24. Bc5 {[%clk 0:01:04.2]} 24... Bc4 {[%clk
0:01:45.4]} 25. Bb6 {[%clk 0:00:59.2]} 25... Qc6 {[%clk 0:01:37.5]} 26. Bxa5
{[%clk 0:00:57.1]} 26... h5 {[%clk 0:01:35.4]} 27. Bb4 {[%clk 0:00:55.7]} 27...
Kh7 {[%clk 0:01:35.7]} 28. h4 {[%clk 0:00:51.3]} 28... Bh6 {[%clk 0:01:35.8]}
29. Qg3 {[%clk 0:00:45.5]} 29... Bb3 {[%clk 0:01:25.5]} 30. Ra1 {[%clk
0:00:44.1]} 30... Qxe6 {[%clk 0:01:19]} 31. Nc5 {[%clk 0:00:43.9]} 31... Qf5
{[%clk 0:00:47.9]} 32. Nxb3 {[%clk 0:00:42.7]} 32... Bf4 {[%clk 0:00:48]} 33.
Qf3 {[%clk 0:00:41.9]} 33... Kh6 {[%clk 0:00:24]} 34. g3 {[%clk 0:00:40.1]}
34... Bc7 {[%clk 0:00:24.6]} 35. Qxf5 {[%clk 0:00:39.8]} 35... gxf5 {[%clk
0:00:25.5]} 36. Ra7 {[%clk 0:00:39.4]} 36... Bd8 {[%clk 0:00:24.9]} 37. Rd7
{[%clk 0:00:37.9]} 37... e6 {[%clk 0:00:24.3]} 38. Rb7 {[%clk 0:00:37.1]} 38...
Rg8 {[%clk 0:00:23.2]} 39. Kf1 {[%clk 0:00:35.3]} 39... f4 {[%clk 0:00:23.6]}
40. Kg2 {[%clk 0:00:31.2]} 40... fxg3 {[%clk 0:00:23.5]} 41. fxg3 {[%clk
0:00:32.1]} 41... f5 {[%clk 0:00:24.4]} 42. Kf3 {[%clk 0:00:31.5]} 42... Bf6
{[%clk 0:00:22.6]} 43. Rxb5 {[%clk 0:00:30]} 43... Rg4 {[%clk 0:00:22.4]} 44.
Rb6 {[%clk 0:00:29.1]} 44... f4 {[%clk 0:00:22.8]} 45. gxf4 {[%clk 0:00:26.9]}
45... Kg7 {[%clk 0:00:23.5]} 46. Rxe6 {[%clk 0:00:24.4]} 46... Bxh4 {[%clk
0:00:24.2]} 47. Bd6 {[%clk 0:00:21.1]} 47... Rg3+ {[%clk 0:00:25.1]} 48. Ke2
{[%clk 0:00:20.5]} 48... Rxc3 {[%clk 0:00:26]} 49. Nc5 {[%clk 0:00:16.2]} 49...
Bg3 {[%clk 0:00:26.9]} 50. Be5+ {[%clk 0:00:14.8]} 50... Kf7 {[%clk 0:00:26.7]}
51. Rh6 {[%clk 0:00:14.5]} 51... h4 {[%clk 0:00:26.5]} 52. Rh7+ {[%clk 0:00:13]}
52... Kg6 {[%clk 0:00:25.8]} 53. Rg7+ {[%clk 0:00:11.6]} 53... Kf5 {[%clk
0:00:26.7]} 54. Rg5# {[%clk 0:00:11.5]} 1-0

[Event "*** Titled Tuesday Blitz"]
[Site "Chess.com"]
[Date "2020.12.01"]
[Round "8"]
[White "Brave_spirit12"]
[Black "anon219"]
[Result "0-1"]
[WhiteElo "2488"]
[BlackElo "2748"]
[TimeControl "180+1"]
[EndTime "11:27:11 PST"]
[Termination "anon219 won by checkmate"]

1. e4 {[%clk 0:03:00.9]} 1... c5 {[%clk 0:02:58.3]} 2. c3 {[%clk 0:03:00.2]}
2... d5 {[%clk 0:02:57.9]} 3. exd5 {[%clk 0:03:00.6]} 3... Qxd5 {[%clk
0:02:58.8]} 4. Nf3 {[%clk 0:03:01.5]} 4... Nc6 {[%clk 0:02:57.9]} 5. Be2 {[%clk
0:03:01.2]} 5... Bf5 {[%clk 0:02:57]} 6. d4 {[%clk 0:02:58.8]} 6... cxd4 {[%clk
0:02:56.6]} 7. cxd4 {[%clk 0:02:58.1]} 7... Bxb1 {[%clk 0:02:57.1]} 8. Rxb1
{[%clk 0:02:57.4]} 8... e6 {[%clk 0:02:58]} 9. O-O {[%clk 0:02:54.5]} 9... Nf6
{[%clk 0:02:58]} 10. b3 {[%clk 0:02:54.2]} 10... Bd6 {[%clk 0:02:56.6]} 11. Bg5
{[%clk 0:02:51.8]} 11... Ne4 {[%clk 0:02:54.1]} 12. Bc4 {[%clk 0:02:33.7]} 12...
Qa5 {[%clk 0:02:50.3]} 13. d5 {[%clk 0:02:18.5]} 13... Nc3 {[%clk 0:02:35.2]}
14. Qd3 {[%clk 0:02:11.3]} 14... Nxd5 {[%clk 0:02:30.8]} 15. Bxd5 {[%clk
0:02:02.4]} 15... Qxd5 {[%clk 0:02:31.7]} 16. Qxd5 {[%clk 0:02:01.9]} 16... exd5
{[%clk 0:02:30.9]} 17. Rfe1+ {[%clk 0:02:02.8]} 17... Kd7 {[%clk 0:02:27]} 18.
Red1 {[%clk 0:01:58.5]} 18... f6 {[%clk 0:02:26.8]} 19. Be3 {[%clk 0:01:57.3]}
19... Ne7 {[%clk 0:02:26.8]} 20. Nd4 {[%clk 0:01:56.7]} 20... a6 {[%clk
0:02:25.2]} 21. b4 {[%clk 0:01:48.5]} 21... Rhc8 {[%clk 0:02:07.7]} 22. a4
{[%clk 0:01:42.1]} 22... Rc4 {[%clk 0:02:02.9]} 23. b5 {[%clk 0:01:21.3]} 23...
a5 {[%clk 0:02:02.8]} 24. b6 {[%clk 0:01:17.5]} 24... Rxa4 {[%clk 0:01:59.7]}
25. Nb5 {[%clk 0:01:16.5]} 25... Rb4 {[%clk 0:01:47.3]} 26. Rxb4 {[%clk
0:01:11.2]} 26... axb4 {[%clk 0:01:44.7]} 27. Rc1 {[%clk 0:01:11.1]} 27... Nc6
{[%clk 0:01:42.9]} 28. g3 {[%clk 0:01:04.3]} 28... Ra5 {[%clk 0:01:40.2]} 29.
Na7 {[%clk 0:00:35]} 29... b3 {[%clk 0:01:03.2]} 30. Rb1 {[%clk 0:00:31.6]}
30... d4 {[%clk 0:00:46.9]} 31. Bc1 {[%clk 0:00:15.1]} 31... Nxa7 {[%clk
0:00:42.8]} 32. bxa7 {[%clk 0:00:14.2]} 32... Rxa7 {[%clk 0:00:43.3]} 33. Bb2
{[%clk 0:00:12.7]} 33... Bc5 {[%clk 0:00:40.4]} 34. Kf1 {[%clk 0:00:05.4]} 34...
Ra2 {[%clk 0:00:32]} 35. Ke1 {[%clk 0:00:05.5]} 35... d3 {[%clk 0:00:31.3]} 36.
Bc1 {[%clk 0:00:03.5]} 36... Bb4+ {[%clk 0:00:20.5]} 37. Kf1 {[%clk 0:00:03.4]}
37... d2 {[%clk 0:00:19.8]} 38. Bxd2 {[%clk 0:00:03.9]} 38... Bxd2 {[%clk
0:00:18.5]} 39. Rxb3 {[%clk 0:00:04.8]} 39... Kc6 {[%clk 0:00:19]} 40. Kg2
{[%clk 0:00:04.6]} 40... b5 {[%clk 0:00:19.2]} 41. Kh3 {[%clk 0:00:04]} 41... b4
{[%clk 0:00:19.6]} 42. Kg4 {[%clk 0:00:04.5]} 42... Bc3 {[%clk 0:00:20]} 43. f4
{[%clk 0:00:04.7]} 43... Rb2 {[%clk 0:00:20.3]} 44. Rxb2 {[%clk 0:00:03.4]}
44... Bxb2 {[%clk 0:00:21.2]} 45. Kf5 {[%clk 0:00:04]} 45... Bc1 {[%clk
0:00:21.4]} 46. Ke6 {[%clk 0:00:04.9]} 46... b3 {[%clk 0:00:21.5]} 47. Kf7
{[%clk 0:00:04.9]} 47... b2 {[%clk 0:00:22.4]} 48. Kxg7 {[%clk 0:00:05]} 48...
b1=Q {[%clk 0:00:23.3]} 49. Kxf6 {[%clk 0:00:05]} 49... Qg6+ {[%clk 0:00:23.4]}
50. Ke5 {[%clk 0:00:05.5]} 50... Bb2# {[%clk 0:00:23.6]} 0-1

[Event "*** Titled Tuesday Blitz"]
[Site "Chess.com"]
[Date "2020.12.01"]
[Round "8"]
[White "tteshan"]
[Black "glebus008"]
[Result "1-0"]
[WhiteElo "2373"]
[BlackElo "2242"]
[TimeControl "180+1"]
[EndTime "11:27:12 PST"]
[Termination "tteshan won on time"]

1. e4 {[%clk 0:03:00.9]} 1... d5 {[%clk 0:02:55.1]} 2. exd5 {[%clk 0:03:00.3]}
2... Nf6 {[%clk 0:02:55.2]} 3. Bb5+ {[%clk 0:02:59.4]} 3... Nbd7 {[%clk
0:02:53.4]} 4. Nc3 {[%clk 0:02:57.3]} 4... a6 {[%clk 0:02:52]} 5. Be2 {[%clk
0:02:53.5]} 5... Nb6 {[%clk 0:02:49.6]} 6. d3 {[%clk 0:02:50.9]} 6... Nbxd5
{[%clk 0:02:49.4]} 7. Nxd5 {[%clk 0:02:35.3]} 7... Nxd5 {[%clk 0:02:47.8]} 8.
Bf3 {[%clk 0:02:34.3]} 8... g6 {[%clk 0:02:40.3]} 9. Ne2 {[%clk 0:02:33.8]} 9...
Bg7 {[%clk 0:02:40.4]} 10. O-O {[%clk 0:02:29]} 10... O-O {[%clk 0:02:40.6]} 11.
c3 {[%clk 0:02:21]} 11... c5 {[%clk 0:02:18.1]} 12. Re1 {[%clk 0:02:13.4]} 12...
e6 {[%clk 0:01:49.8]} 13. Ng3 {[%clk 0:01:55.8]} 13... Bd7 {[%clk 0:01:46.1]}
14. a3 {[%clk 0:01:41.8]} 14... Bc6 {[%clk 0:01:45]} 15. Ne4 {[%clk 0:01:34.7]}
15... b6 {[%clk 0:01:37]} 16. Bg5 {[%clk 0:01:30.7]} 16... f6 {[%clk 0:01:30.6]}
17. Bh4 {[%clk 0:01:30.4]} 17... e5 {[%clk 0:01:27.9]} 18. h3 {[%clk 0:01:19.6]}
18... Qd7 {[%clk 0:01:25.5]} 19. c4 {[%clk 0:01:06.9]} 19... Nf4 {[%clk
0:01:21.5]} 20. Re3 {[%clk 0:00:52.4]} 20... Rad8 {[%clk 0:00:50.9]} 21. Be2
{[%clk 0:00:31.7]} 21... Bxe4 {[%clk 0:00:43.9]} 22. dxe4 {[%clk 0:00:23]} 22...
Qe6 {[%clk 0:00:36.4]} 23. Qc2 {[%clk 0:00:21.5]} 23... Rd4 {[%clk 0:00:27.4]}
24. Bg3 {[%clk 0:00:20.5]} 24... Nxe2+ {[%clk 0:00:25.8]} 25. Qxe2 {[%clk
0:00:21.1]} 25... Qxc4 {[%clk 0:00:22.3]} 26. Qg4 {[%clk 0:00:21.2]} 26... Rfd8
{[%clk 0:00:18]} 27. b3 {[%clk 0:00:20.4]} 27... Qf7 {[%clk 0:00:17.1]} 28. Rae1
{[%clk 0:00:19.7]} 28... Rd2 {[%clk 0:00:16.6]} 29. f4 {[%clk 0:00:15.5]} 29...
Bh6 {[%clk 0:00:15.4]} 30. Rf3 {[%clk 0:00:14.3]} 30... exf4 {[%clk 0:00:14.6]}
31. Bxf4 {[%clk 0:00:14.1]} 31... Bxf4 {[%clk 0:00:15.1]} 32. Qxf4 {[%clk
0:00:14]} 32... Rc2 {[%clk 0:00:11.6]} 33. e5 {[%clk 0:00:14.2]} 33... Rdd2
{[%clk 0:00:10.5]} 34. exf6 {[%clk 0:00:06.9]} 34... Rxg2+ {[%clk 0:00:09.4]}
35. Kf1 {[%clk 0:00:07.5]} 35... h5 {[%clk 0:00:06.4]} 36. Qb8+ {[%clk
0:00:04.8]} 36... Kh7 {[%clk 0:00:05.9]} 37. Qf4 {[%clk 0:00:05]} 37... Rh2
{[%clk 0:00:04.9]} 38. Kg1 {[%clk 0:00:04.2]} 38... Rcg2+ {[%clk 0:00:03.9]} 39.
Kf1 {[%clk 0:00:04.7]} 39... Rb2 {[%clk 0:00:01.6]} 40. Qxh2 {[%clk 0:00:05.1]}
1-0

[Event "*** Titled Tuesday Blitz"]
[Site "Chess.com"]
[Date "2020.12.01"]
[Round "8"]
[White "esapunov"]
[Black "Meri-Arabidze"]
[Result "1-0"]
[WhiteElo "2805"]
[BlackElo "2619"]
[TimeControl "180+1"]
[EndTime "11:27:13 PST"]
[Termination "esapunov won on time"]

1. c4 {[%clk 0:03:00.9]} 1... e5 {[%clk 0:02:59.6]} 2. Nf3 {[%clk 0:03:00.6]}
2... Nc6 {[%clk 0:02:59.8]} 3. Nc3 {[%clk 0:03:00.4]} 3... f5 {[%clk 0:03:00.1]}
4. d4 {[%clk 0:03:00.3]} 4... e4 {[%clk 0:03:00.4]} 5. Ng5 {[%clk 0:03:00.6]}
5... Nf6 {[%clk 0:02:58.6]} 6. a3 {[%clk 0:03:00.2]} 6... Be7 {[%clk 0:02:54.1]}
7. Nh3 {[%clk 0:02:59.5]} 7... O-O {[%clk 0:02:53.8]} 8. Nf4 {[%clk 0:02:59]}
8... a5 {[%clk 0:02:29.6]} 9. e3 {[%clk 0:02:56.1]} 9... d6 {[%clk 0:02:27.9]}
10. h4 {[%clk 0:02:55.3]} 10... Ng4 {[%clk 0:02:25.1]} 11. g3 {[%clk 0:02:51.7]}
11... Bf6 {[%clk 0:01:52.8]} 12. Be2 {[%clk 0:02:49.2]} 12... Nh6 {[%clk
0:01:50.5]} 13. Ncd5 {[%clk 0:02:46.8]} 13... Ne7 {[%clk 0:01:46.4]} 14. Nxf6+
{[%clk 0:02:46.5]} 14... Rxf6 {[%clk 0:01:47]} 15. d5 {[%clk 0:02:44.5]} 15...
Ng6 {[%clk 0:01:43.3]} 16. b3 {[%clk 0:02:42.6]} 16... Ne5 {[%clk 0:01:39.7]}
17. Bb2 {[%clk 0:02:42]} 17... b6 {[%clk 0:01:36.2]} 18. Kf1 {[%clk 0:02:40.6]}
18... Rf8 {[%clk 0:01:34]} 19. Kg2 {[%clk 0:02:39.5]} 19... Nhg4 {[%clk
0:01:31.7]} 20. b4 {[%clk 0:02:38.2]} 20... Qe7 {[%clk 0:01:30.1]} 21. Bc3
{[%clk 0:02:31.4]} 21... Ba6 {[%clk 0:01:18.5]} 22. Qd4 {[%clk 0:02:28.8]} 22...
Rf7 {[%clk 0:01:13.5]} 23. bxa5 {[%clk 0:02:26.2]} 23... bxa5 {[%clk 0:01:13.7]}
24. Rab1 {[%clk 0:02:23.5]} 24... Nd3 {[%clk 0:00:40.3]} 25. Nxd3 {[%clk
0:02:16.2]} 25... exd3 {[%clk 0:00:40.5]} 26. Bxd3 {[%clk 0:02:16.4]} 26... Ne5
{[%clk 0:00:39]} 27. Be2 {[%clk 0:02:14.3]} 27... c5 {[%clk 0:00:37.5]} 28. dxc6
{[%clk 0:02:10.6]} 28... Nxc6 {[%clk 0:00:37.6]} 29. Qd5 {[%clk 0:02:01.5]}
29... Bb7 {[%clk 0:00:37.9]} 30. Bf3 {[%clk 0:01:58.6]} 30... Nd8 {[%clk
0:00:29.7]} 31. Rxb7 {[%clk 0:01:39.7]} 31... Nxb7 {[%clk 0:00:30.6]} 32. Rb1
{[%clk 0:01:39.2]} 32... Rb8 {[%clk 0:00:21.4]} 33. Bd4 {[%clk 0:01:32.8]} 33...
Kh8 {[%clk 0:00:07.9]} 34. h5 {[%clk 0:01:30.7]} 34... h6 {[%clk 0:00:07]} 35.
Ba7 {[%clk 0:01:28.9]} 35... Rbf8 {[%clk 0:00:03.3]} 36. Bd4 {[%clk 0:01:22.9]}
36... Nc5 {[%clk 0:00:01.7]} 37. Rb6 {[%clk 0:01:20.9]} 37... Kh7 {[%clk
0:00:01.6]} 38. Rxd6 {[%clk 0:01:20.5]} 38... Ne4 {[%clk 0:00:02.3]} 39. Re6
{[%clk 0:01:18.8]} 39... Qg5 {[%clk 0:00:01.9]} 40. Bxe4 {[%clk 0:00:55.7]}
40... fxe4 {[%clk 0:00:01.9]} 41. Qxe4+ {[%clk 0:00:54.9]} 41... Kg8 {[%clk
0:00:02.3]} 42. f4 {[%clk 0:00:51.7]} 42... Qd8 {[%clk 0:00:02.2]} 43. c5 {[%clk
0:00:48.8]} 43... Qb8 {[%clk 0:00:02.1]} 44. c6 {[%clk 0:00:42.7]} 44... Qb3
{[%clk 0:00:02.1]} 45. Rg6 {[%clk 0:00:39.4]} 45... Qa2+ {[%clk 0:00:02.4]} 46.
Kh3 {[%clk 0:00:38.5]} 46... Qc4 {[%clk 0:00:03.1]} 47. Kh2 {[%clk 0:00:30]}
47... Qa2+ {[%clk 0:00:02.8]} 48. Qg2 {[%clk 0:00:30.2]} 48... Qc4 {[%clk
0:00:03.1]} 49. Qb2 {[%clk 0:00:29]} 49... Re8 {[%clk 0:00:02.2]} 50. Bxg7
{[%clk 0:00:27.6]} 1-0

[Event "*** Titled Tuesday Blitz"]
[Site "Chess.com"]
[Date "2020.12.01"]
[Round "8"]
[White "anasta10"]
[Black "GothamChess"]
[Result "0-1"]
[WhiteElo "2437"]
[BlackElo "2578"]
[TimeControl "180+1"]
[EndTime "11:27:17 PST"]
[Termination "GothamChess won on time"]

1. d4 {[%clk 0:02:49.7]} 1... Nf6 {[%clk 0:02:56.9]} 2. c4 {[%clk 0:02:38.3]}
2... e5 {[%clk 0:02:55.2]} 3. dxe5 {[%clk 0:02:37.1]} 3... Ng4 {[%clk
0:02:52.6]} 4. Nf3 {[%clk 0:02:37]} 4... Bc5 {[%clk 0:02:51.3]} 5. e3 {[%clk
0:02:33.9]} 5... Nc6 {[%clk 0:02:50.8]} 6. Be2 {[%clk 0:02:31.7]} 6... Ngxe5
{[%clk 0:02:40.3]} 7. O-O {[%clk 0:02:27]} 7... O-O {[%clk 0:02:39.1]} 8. Nc3
{[%clk 0:02:23.8]} 8... Nxf3+ {[%clk 0:02:39.1]} 9. Bxf3 {[%clk 0:02:22.8]} 9...
Ne5 {[%clk 0:02:39.2]} 10. Be2 {[%clk 0:02:22.9]} 10... Re8 {[%clk 0:02:38.7]}
11. b3 {[%clk 0:02:21.5]} 11... a5 {[%clk 0:02:38.7]} 12. Bb2 {[%clk 0:02:21.4]}
12... Ra6 {[%clk 0:02:38.9]} 13. Ne4 {[%clk 0:02:13.5]} 13... Bf8 {[%clk
0:02:16.6]} 14. Ng3 {[%clk 0:02:09.3]} 14... Rh6 {[%clk 0:01:58.7]} 15. Nf5
{[%clk 0:01:58.5]} 15... Rg6 {[%clk 0:01:54.6]} 16. Bh5 {[%clk 0:01:44.2]} 16...
Rf6 {[%clk 0:01:37.2]} 17. Ng3 {[%clk 0:01:39.7]} 17... g6 {[%clk 0:01:28.1]}
18. f4 {[%clk 0:01:25.6]} 18... Rd6 {[%clk 0:01:14.5]} 19. Qc2 {[%clk
0:00:42.9]} 19... Nc6 {[%clk 0:01:09.3]} 20. Qc3 {[%clk 0:00:37]} 20... f6
{[%clk 0:01:04]} 21. Bf3 {[%clk 0:00:36]} 21... Bg7 {[%clk 0:00:51.8]} 22. c5
{[%clk 0:00:27.8]} 22... Rde6 {[%clk 0:00:48.7]} 23. Bd5 {[%clk 0:00:27.6]}
23... Nb4 {[%clk 0:00:48.7]} 24. Bxe6+ {[%clk 0:00:26.6]} 24... dxe6 {[%clk
0:00:49.2]} 25. Rad1 {[%clk 0:00:25.4]} 25... Qe7 {[%clk 0:00:49.1]} 26. a3
{[%clk 0:00:24.8]} 26... Nd5 {[%clk 0:00:48.9]} 27. Qd4 {[%clk 0:00:21.7]} 27...
f5 {[%clk 0:00:43]} 28. Qxg7+ {[%clk 0:00:20.4]} 28... Qxg7 {[%clk 0:00:43.9]}
29. Bxg7 {[%clk 0:00:20.5]} 29... Kxg7 {[%clk 0:00:41.4]} 30. Rfe1 {[%clk
0:00:18.4]} 30... c6 {[%clk 0:00:26.6]} 31. Rd4 {[%clk 0:00:15.4]} 31... e5
{[%clk 0:00:25.9]} 32. fxe5 {[%clk 0:00:15.1]} 32... Rxe5 {[%clk 0:00:26.8]} 33.
Kf2 {[%clk 0:00:15.7]} 33... Ne7 {[%clk 0:00:21.7]} 34. b4 {[%clk 0:00:13.9]}
34... a4 {[%clk 0:00:19.9]} 35. Ne2 {[%clk 0:00:11.5]} 35... Be6 {[%clk
0:00:20.4]} 36. Nf4 {[%clk 0:00:11.2]} 36... Bb3 {[%clk 0:00:18.3]} 37. Rd7
{[%clk 0:00:10.1]} 37... Kf6 {[%clk 0:00:17.9]} 38. Rxb7 {[%clk 0:00:09.8]}
38... g5 {[%clk 0:00:17.6]} 39. Nd3 {[%clk 0:00:09.5]} 39... Rd5 {[%clk
0:00:15.5]} 40. Nc1 {[%clk 0:00:09.5]} 40... Bc4 {[%clk 0:00:12.6]} 41. Ne2
{[%clk 0:00:08.6]} 41... Rd2 {[%clk 0:00:11.8]} 42. Rb6 {[%clk 0:00:04.9]} 42...
Bb5 {[%clk 0:00:09.9]} 43. Kf1 {[%clk 0:00:02.1]} 43... Nd5 {[%clk 0:00:06]} 44.
Rxb5 {[%clk 0:00:02]} 44... Nxe3+ {[%clk 0:00:05.3]} 45. Kf2 {[%clk 0:00:01.2]}
45... Ng4+ {[%clk 0:00:05.9]} 0-1